Cogmind - Beta 17 @@@ ROGUE MODE // 2026.07.14 @ 01:06:49 Player: mischief_2000 Result: Core destroyed Performance ------------- Evolutions (2) 1000 Regions Visited (3) 600 Robots Destroyed (99) 495 Value Destroyed (2256) 2256 Prototype IDs (5) 100 Alien Tech Used (0) 0 Bonus (12) 12 TOTAL SCORE: 4463 Bonus ------- High Alert Combat Kills 12 Cogmind --------- Core Integrity 0/550 Matter 4/300 Energy 240/240 System Corruption 14% Temperature Cool (0) Movement Rolling (120) Ox2 Location -8/Materials Parts ------- > --- POWER (1) -------- Nuclear Core > --- PROPULSION (4) --- Armored Wheel Armored Wheel Armored Wheel > --- UTILITY (4) ------ Huge Storage Unit Improved Sensor Array Improved Signal Interpreter Hacking Suite > --- WEAPON (2) ------- Light Cannon Flak Cannon > --- INVENTORY (25) --- Heavy Ion Engine Improved Flight Unit Improved Flight Unit Improved Flight Unit Improved Flight Unit Improved Flight Unit Improved Flight Unit Medium Storage Unit High-capacity Matter Pod (0) Advanced Weight Redist. System Transport Network Coupler Recoil Stabilizer Insulated Plating Mini Grenade Launcher Plasma Cutter Heavy Mace Peak State ------------ > --- POWER ------------ Heavy Ion Engine > --- PROPULSION ------- Improved Treads Improved Treads Armored Wheel > --- UTILITY ---------- Improved Heat Sink Huge Storage Unit Hacking Suite Hacking Suite > --- WEAPON ----------- Enhanced Autogun Enhanced Autogun > --- INVENTORY -------- Heavy Ion Engine Armored Wheel Armored Wheel Armored Wheel Armored Wheel Armored Wheel Armored Wheel Improved Flight Unit Improved Flight Unit Improved Flight Unit Improved Flight Unit Improved Flight Unit Improved Flight Unit Medium Storage Unit High-capacity Matter Pod Advanced Weight Redist. System Transport Network Coupler Recoil Stabilizer Hacking Suite Enhanced Autogun Light Cannon Mini Grenade Launcher Mini Grenade Launcher Plasma Cutter Heavy Mace [Rating: 32] Favorites ----------- Power Light Ion Engine Engine Light Ion Engine Power Core Nuclear Core Propulsion Light Treads Treads Light Treads Leg Aluminum Leg Wheel Wheel Flight Unit Improved Flight Unit Utility Huge Storage Unit Device Improved Heat Sink Storage Huge Storage Unit Processor Improved Targeting Computer Hackware Hacking Suite Protection Insulated Plating Weapon Light Cannon Energy Gun Medium Laser Energy Cannon Particle Cannon Ballistic Gun Enhanced Autogun Ballistic Cannon Light Cannon Launcher Grenade Launcher Special Weapon Mining Laser Impact Weapon Heavy Mace Build | -11 -10 -9 -8 ------- Run | Yrd Mat Mat Mat Slots Evolved 4 | . . 2 2 Power . | . . . . Propulsion 2 | . . 1 1 Utility 2 | . . 1 1 Weapon . | . . . . Parts Attached 67 | 7 10 30 20 Power 5 | 1 . 3 1 Engine 4 | 1 . 3 . Core 1 | . . . 1 Reactor . | . . . . Propulsion 24 | 2 2 11 9 Treads 11 | 2 . 9 . Leg 1 | . . . 1 Wheel 11 | . 2 1 8 Hover . | . . . . Flight 1 | . . 1 . Utility 14 | 2 2 4 6 Device 4 | 1 . 2 1 Storage 3 | 1 1 . 1 Processor 3 | . 1 1 1 Hackware 3 | . . 1 2 Protection 1 | . . . 1 Artifact . | . . . . Weapon 24 | 2 6 12 4 Energy Gun 2 | 1 . 1 . Energy Cannon 4 | . . 4 . Ballistic Gun 6 | 1 2 2 1 Ballistic Cannon 4 | . 2 . 2 Launcher 3 | . . 2 1 Special Weapon 1 | . 1 . . Impact Weapon 4 | . 1 3 . Slashing Weapon . | . . . . Piercing Weapon . | . . . . Special Melee Weapon . | . . . . Unidentified Prototypes 5 | . . 5 . Parts Lost 17 | . . 3 14 Power 1 | . . . 1 Propulsion 10 | . . 2 8 Utility 4 | . . 1 3 Weapon 2 | . . . 2 Highest Loss Streak 11 | . . 1 11 To Critical Strikes . | . . . . Average Backups 21 | 5 21 24 16 Power . | . 1 . 1 Propulsion 7 | 3 5 10 6 Utility 5 | . 5 6 5 Weapon 6 | . 8 6 2 Tool/Special . | . . . . Unused Backups 45 | . 16 16 13 Power 1 | . . . 1 Propulsion 14 | . 2 6 6 Utility 12 | . 5 3 4 Weapon 17 | . 9 7 1 Tool/Special 1 | . . . 1 Average Slot Usage (%) 95 | . 99 99 76 Engine 10 | . 14 10 1 Treads 15 | . 14 21 1 Wheel 12 | . 13 11 15 Device 7 | . 4 10 5 Storage 12 | . 14 11 11 Processor 4 | . 9 . 5 Hackware 6 | . . 10 9 Energy Gun 1 | . 4 . . Energy Cannon 7 | . . 16 . Ballistic Gun 3 | . 5 3 2 Ballistic Cannon 9 | . 17 1 10 Peak Build Rating 32 | 7 12 29 32 Average Rating 16 | 6 10 21 22 On Entrance 11 | . 7 11 29 Avg Prop Armor Cover (%) 14 | . 10 18 11 Naked Turns . | . . . . Heaviest Build 99 | 12 89 97 99 Greatest Support 40 | 40 40 40 36 Greatest Overweight (x) 9 | . 8 9 8 Average Overweight (x) 6 | . 7 7 4 Largest Inventory Capacity 25 | 8 25 25 25 Average Capacity 24 | 7 24 25 25 Most Carried 25 | 8 25 25 25 Average Carried 21 | 5 21 24 15 Final Capacity 25 | 8 25 25 25 Final Carried 25 | 8 25 25 16 Class Distribution -------------------- 87% | Mutant 12% | Scavenger-Mutant Dominant Class ---------------- Mutant | -10/Materials Mutant | -9/Materials Mutant | -8/Materials Resources | -11 -10 -9 -8 ----------- Run | Yrd Mat Mat Mat Matter Collected 1596 | 284 395 656 261 Remotely . | . . . . Salvage Created 2649 | 231 813 1210 395 Parts 186 | 16 55 95 20 Haulers Intercepted 7 | . 2 5 . Recyclers Shooed 1 | . . 1 . Parts Field Recycled . | . . . . Retrieved Matter . | . . . . Parts Self-Destructed . | . . . . Prevented . | . . . . Parts Restored . | . . . . Kills | -11 -10 -9 -8 ------- Run | Yrd Mat Mat Mat Combat Hostiles Destroyed 52 | . 15 26 11 Melee 3 | . 1 . 2 Guns 6 | . 4 . 2 Cannons 27 | . 10 16 1 AOE 13 | . . 8 5 Classes Destroyed 13 | 3 5 3 2 Worker 12 | 2 3 3 4 Builder 3 | . 1 . 2 Tunneler 8 | 5 1 2 . Hauler 7 | . 2 5 . Recycler 3 | 1 1 . 1 Mechanic 1 | . . . 1 Operator 5 | . 1 3 1 Watcher 8 | . 3 4 1 Swarmer 10 | . . 10 . Grunt 27 | . 15 7 5 Duelist 3 | . . 1 2 Sentry 11 | . . 8 3 Hunter 1 | . . . 1 Best Kill Streak 10 | 4 5 6 10 Combat Bots Only 5 | . 4 5 4 Max Kills in Single Turn 4 | 1 2 4 3 Gunslinging . | . . . . Exploded 4 | . . 4 1 Melee 1 | . 1 . 1 Uniques/NPCs Destroyed . | . . . . Combat | -11 -10 -9 -8 -------- Run | Yrd Mat Mat Mat Hostile Shots Fired 322 | . 50 109 163 Missed 112 | . 19 35 58 Hits 210 | . 31 74 105 Melee 9 | . . 3 6 Projectile 201 | . 31 71 99 Critical Strikes 12 | . 4 3 5 Damage Taken 4074 | . 414 1020 2640 Core 752 | . 89 113 550 Absorbed by Shields . | . . . . Regen/Repaired (Parts) 80 | . . . 80 Core Remaining (%) 78 | 100 64 71 . Volleys Fired 193 | 21 55 82 35 Largest 2 | 2 2 2 2 Hottest 136 | 70 100 136 67 Shots Fired 366 | 42 106 163 55 Gun 112 | 42 39 . 31 Cannon 237 | . 66 160 11 Launcher 16 | . . 3 13 Special 1 | . 1 . . Kinetic 174 | 21 87 24 42 Thermal 176 | 21 19 136 . Explosive 16 | . . 3 13 Electromagnetic . | . . . . Robot Hit Streak 16 | 6 13 12 16 Robot Miss Streak 5 | 3 3 4 5 Penetration Max . | . . . . Secondary Targets 2 | . 1 . 1 Max Gunslinging Chain 1 | . 1 . 1 Shots Hit Robots 240 | 25 63 98 54 Core Hits 131 | 10 36 44 41 Critical Kills 1 | . . 1 . Critical Parts Destroyed 3 | . . . 3 Critical Strikes 10 | 2 2 3 3 Burn 3 | 2 1 . . Meltdown 1 | . . 1 . Blast 3 | . 1 2 . Smash 3 | . . . 3 Melee Attacks 26 | . 3 8 15 Impact 26 | . 3 8 15 Slashing . | . . . . Piercing . | . . . . Sneak Attacks 5 | . 1 1 3 Combat Hostiles . | . . . . Follow-up Attacks . | . . . . Damage Inflicted 6463 | 279 1125 2585 2474 Guns 946 | 279 291 . 376 Cannons 2973 | . 770 2034 169 Explosions 1766 | . . 475 1291 Melee 748 | . 64 74 610 Ramming 30 | . . 2 28 Kinetic 1790 | 77 851 317 545 Thermal 2282 | 202 210 1870 . Explosive 1613 | . . 322 1291 Electromagnetic . | . . . . Impact 748 | . 64 74 610 Slashing . | . . . . Piercing . | . . . . Highest Corruption 14 | . 2 4 14 Average Corruption 5 | . 2 4 13 Corruption Purged . | . . . . Corruption Blocked . | . . . . Effects 82 | . 17 26 39 Message Errors 18 | . 3 8 7 Matter Fused 26 | . 7 10 9 Heat Flow Errors 8 | . 2 1 5 Energy Discharges 16 | . 4 4 8 Parts Rejected 2 | . . 1 1 Data Loss (minor) 6 | . 1 1 4 Data Loss (major) 2 | . . . 2 Alerts 3 | . . 1 2 Weapon Failures 1 | . . . 1 Overload Shots . | . . . . Overflow Damage 272 | . 6 41 225 Projectiles 20 | . . 20 . Explosions 56 | . . 21 35 Melee 196 | . 6 . 190 Knockbacks 3 | . 2 . 1 Impact 2 | . 1 . 1 Kinetic 1 | . 1 . . Secondary . | . . . . Self-Inflicted Damage 420 | . . 90 330 Shots 11 | . . 2 9 Rammed 4 | . . 1 3 Targets Rammed 4 | . . 1 3 Kicked . | . . . . Crushed . | . . . . Highest Temperature 357 | 100 296 357 275 Average Temperature 67 | 34 91 62 77 Received Heat Transfer 1245 | . 309 279 657 Effects 1 | . 1 . . Energy Bleed 1 | . 1 . . Siege Activations . | . . . . Martial Activations . | . . . . Shielding Activations . | . . . . Robots Disrupted . | . . . . Combat Hostiles . | . . . . Robots Corrupted 2 | . . . 2 Combat Hostiles 1 | . . . 1 Parts Fried 3 | . . . 3 Impact Corruptions 9 | . 1 . 8 Robots Melted 2 | . . 2 . Combat Hostiles 2 | . . 2 . Parts Melted 7 | 1 1 5 . Heat Transferred 4651 | 740 703 3208 . Parts Sabotaged . | . . . . Parts Stolen . | . . . . Parts Stripped . | . . . . Power Chain Reactions . | . . . . Alert | -11 -10 -9 -8 ------- Run | Yrd Mat Mat Mat Maximum Alert Level 2 | . . 2 1 Low Security (%) 67 | 100 100 43 50 Level 1 30 | . . 52 49 Level 2 1 | . . 4 . Level 3 . | . . . . Level 4 . | . . . . Level 5 . | . . . . High Security . | . . . . Max Security . | . . . . Peak Influence 463 | 15 149 463 290 Initial 115 | . . 24 115 Average 138 | 1 67 188 201 Influence Increases 1961 | 40 448 947 526 Destroy 0b10 Robot/C 1040 | . 300 520 220 Destroy 0b10 Robot/NC 235 | 40 60 85 50 Destroy Leader 310 | . 80 158 72 Successful Hack 51 | . 5 25 21 Disable Machine 105 | . . 45 60 Destroy Structure 115 | . 3 54 58 Partial Spotted 15 | . . . 15 Lose Combat Pursuer 90 | . . 60 30 Influence Decreases 1834 | 40 390 732 672 Entered New Map 192 | . . 34 158 Time Decay 1332 | 40 390 528 374 Lost Part 160 | . . 20 140 Purge Threat 150 | . . 150 . Squads Dispatched 6 | . 3 2 1 Investigation 2 | . 2 . . Extermination . | . . . . Reinforcement 4 | . 1 2 1 Assault . | . . . . Garrison . | . . . . Intercept . | . . . . Searches Triggered . | . . . . Construction Impeded 1 | . . . 1 Haulers Reinforced . | . . . . Active Scanning Responses . | . . . . Cargo Convoy Interrupts . | . . . . Stealth | -11 -10 -9 -8 --------- Run | Yrd Mat Mat Mat Distress Signals 4 | . 1 3 . Communications Jammed . | . . . . Distress Signals . | . . . . Times Spotted 79 | . 20 43 16 Peak Tracking Total 7 | . 3 4 7 Tactical Retreats 4 | . . 3 1 Traps | -11 -10 -9 -8 ------- Run | Yrd Mat Mat Mat Traps Triggered 3 | . 3 . . Indirectly . | . . . . Trap Hack Attempts . | . . . . Triggered . | . . . . Disarmed . | . . . . Reprogrammed . | . . . . Reused . | . . . . Traps Extracted . | . . . . Installed . | . . . . Triggered . | . . . . Machines | -11 -10 -9 -8 ---------- Run | Yrd Mat Mat Mat Machines Disabled 7 | . . 3 4 Max in Single Turn 1 | . . 1 1 Machines Repaired . | . . . . Machines Dismantled . | . . . . Machines Sabotaged . | . . . . Overloaded Fab Kills . | . . . . Hacking | -11 -10 -9 -8 --------- Run | Yrd Mat Mat Mat Machines Accessed 19 | . 7 8 4 Terminals 17 | . 7 7 3 Fabricators . | . . . . Repair Stations 1 | . . . 1 Recycling Units . | . . . . Scanalyzers 1 | . . 1 . Garrison Access . | . . . . Total Hacks 68 | . 15 40 13 Successful 40 | . 7 26 7 Failed 27 | . 8 13 6 Catastrophic 2 | . 1 . 1 Database Lockouts 1 | . . 1 . Manual 49 | . 15 26 8 Terminals 54 | . 15 29 10 Fabricators . | . . . . Repair Stations 3 | . . . 3 Recycling Units . | . . . . Scanalyzers 11 | . . 11 . Garrison Access . | . . . . Terminal Hacks 9 | . 1 6 2 Part Schematic 2 | . . 2 . Branch Access Points 2 | . . 1 1 Emergency Access Points 1 | . . . 1 Terminal Index 2 | . 1 1 . Unreport Threat 1 | . . 1 . Hauler Manifests 1 | . . 1 . Fabricator Hacks . | . . . . Repair Station Hacks 2 | . . . 2 Scan Component 1 | . . . 1 Repair 1 | . . . 1 Recycling Unit Hacks . | . . . . Scanalyzer 10 | . . 10 . Insert Component 5 | . . 5 . Analyze 5 | . . 5 . Garrison Access Hacks . | . . . . Unauthorized Hacks 18 | . 6 9 3 Terminals 18 | . 6 9 3 Botnet 6 | . 1 3 2 Skim 12 | . 5 6 1 Fabricators . | . . . . Repair Stations . | . . . . Recycling Units . | . . . . Scanalyzers . | . . . . Garrison Access . | . . . . Data Cores Recovered 2 | . . 1 1 Used . | . . . . Hacking Detections 17 | . 5 8 4 Full Trace Events 1 | . 1 . . Feedback Events . | . . . . Feedback Blocked . | . . . . Robot Schematics Acquired . | . . . . Robots Built . | . . . . Authchips . | . . . . Time . | . . . . Total Robot Build Rating . | . . . . Part Schematics Acquired 7 | . . 7 . Parts Built . | . . . . Authchips . | . . . . Time . | . . . . Total Part Build Rating . | . . . . Part Studies Acquired . | . . . . Parts Repaired 1 | . . . 1 Time 32 | . . . 32 Parts Recycled . | . . . . Recycled Matter . | . . . . Retrieved Matter . | . . . . Retrieved Components . | . . . . Parts Scanalyzed 5 | . . 5 . Part Schematics Acquired 5 | . . 5 . Parts Damaged 1 | . . 1 . Bothacking | -11 -10 -9 -8 ------------ Run | Yrd Mat Mat Mat Used RIF Installer . | . . . . Robots Hacked . | . . . . Non-combat . | . . . . Combat . | . . . . Robot Hacks Applied . | . . . . Relay Couplers Released . | . . . . Fabnet Peak Effective % . | . . . . Robots Rewired . | . . . . Allies Hacked . | . . . . Hacks Repelled . | . . . . Allies | -11 -10 -9 -8 -------- Run | Yrd Mat Mat Mat Total Allies . | . . . . Largest Group . | . . . . Highest-Rated Group . | . . . . Highest-Rated Ally . | . . . . Total Orders . | . . . . Ally Attacks . | . . . . Total Damage . | . . . . Kills . | . . . . Allies Corrupted . | . . . . Allies Melted . | . . . . Intel | -11 -10 -9 -8 ------- Run | Yrd Mat Mat Mat Active Infowar (turns) 1625 | 159 630 422 414 Sensors 414 | . . . 414 Seismic 1211 | 159 630 422 . Robot Analysis Total . | . . . . Derelict Logs Recovered . | . . . . Drone Launches . | . . . . Drone Recoveries . | . . . . Exploration | -11 -10 -9 -8 ------------- Run | Yrd Mat Mat Mat Turns Passed 5336 | 221 1979 2271 865 Spaces Moved 2118 | 92 742 890 394 Core 2 | 2 . . . Treads 143 | 90 52 1 . Legs . | . . . . Wheels 1973 | . 690 889 394 Hover . | . . . . Flight . | . . . . Fastest Speed 50 | 50 160 195 120 Average Speed 191 | 157 197 204 160 Slowest Speed 320 | 160 200 320 210 Overloaded Moves . | . . . . Propulsion Burnouts . | . . . . Robots Hopped . | . . . . Potential Cave-ins . | . . . . Cave-ins Triggered 2 | . . . 2 Exploration Rate (%) 47 | 5 92 66 25 Regions Visited 3 Branch Regions . Pre-discovered Areas 4 | . 1 3 . Known Exits Taken 2 | . 1 1 . Unknown Exits Taken 1 | 1 . . . Scrap Searched . | . . . . Spaces Dug 7 | . 2 5 . Terrain Destroyed 117 | . 2 53 62 Melee 6 | . 1 5 . Projectile 1 | . 1 . . AOE 110 | . . 48 62 Terrain Rammed . | . . . . Walls Destroyed . | . . . . Machines Disabled . | . . . . Actions | -11 -10 -9 -8 --------- Run | Yrd Mat Mat Mat Total 3005 | 127 1158 1170 550 Wait 427 | . 287 70 70 Move 2115 | 91 741 889 394 Hop . | . . . . Pick Up 79 | 8 37 33 1 Fast Attach 37 | 7 3 16 11 Attach 20 | . 1 9 10 Detach 3 | . 1 . 2 Swap 29 | . 7 15 7 Drop 73 | . 23 47 3 Fire 193 | 21 55 82 35 Melee 26 | . 3 8 15 Ram 3 | . . 1 2 Kick . | . . . . Crush . | . . . . Escape Stasis . | . . . . Rewire . | . . . . Trap . | . . . . Miscellaneous . | . . . . Route ------- -11/Scrapyard -10/Materials (discovered 5 exits: *Mat x3 / [*Min] / [*Sub]) -9/Materials (discovered 5 exits: *Mat x3 / *Min x2) -8/Materials History --------- Turn | Location | Event 13 | -11/Scrapyard | Discovered new exit (range 15) 222 | -11/Scrapyard | Entered Materials 328 | -10/Materials | Build established: Mutant 364 | -10/Materials | Discovered new exit (range 9) 601 | -10/Materials | Discovered new exit (range 11) 905 | -10/Materials | Discovered new exit (range 9) 1288 | -10/Materials | Discovered new exit (range 7) 1860 | -10/Materials | Discovered new exit (range 4) 1873 | -10/Materials | Learned Storage emergency access door positions 1927 | -10/Materials | Learned 2 Storage zone layouts 1969 | -10/Materials | Learned 4 Subcaves zone layouts 2038 | -10/Materials | Learned location of Mines (-8) 2065 | -10/Materials | Identified exit to Materials 2104 | -10/Materials | Learned location of 1 exit from Storage 2201 | -10/Materials | Entered another Materials area 2201 | -9/Materials | Evolved 2 slots: Propulsion x1, Utility x1 2243 | -9/Materials | Identified exit to Mines 3239 | -9/Materials | Discovered new exit (range 16) 3469 | -9/Materials | Central database locked down 3493 | -9/Materials | Build established: Scavenger-Mutant 3938 | -9/Materials | Discovered new exit (range 16) 4130 | -9/Materials | Identified exit to Materials 4194 | -9/Materials | Build established: Mutant 4195 | -9/Materials | Loaded intel: 12 trap records 4299 | -9/Materials | Learned location of Zion (-7) 4336 | -9/Materials | Learned Storage garrison access intel 4472 | -9/Materials | Entered another Materials area 4472 | -8/Materials | Evolved 2 slots: Propulsion x1, Utility x1 4542 | -8/Materials | Crushed by falling debris 4562 | -8/Materials | Crushed by falling debris 4562 | -8/Materials | System corruption reached 10% 4567 | -8/Materials | Core integrity fell below 50% 4585 | -8/Materials | Core integrity fell below 20% 4615 | -8/Materials | Lost 11 parts (1p5n3u2w) 4926 | -8/Materials | Repaired Arm. Wheel 5337 | -8/Materials | Core destroyed Last Messages --------------- >>Access(Emergency) Found 1 emergency access door: (19,26) Map updated. 05104_ System corrupted: Matter fused (-8). 05108_ Acquired Arm. Wheel. 05150_ System corrupted: Component data lost. 05156_ Acquired Imp. Sensor Array. 05177_ System corrupted: Heat flow error (+121). 05192_ System corrupted: Energy discharge (-52). 05204_ Critical hit (Burn: +37). 05209_ System corrupted: Matter fused (-10). 05235_ System corrupted: Matter fused (-3). 05252_ 8E52B/NE8ILMKIC>O0AQ800GEQNY 05279_ System corrupted: Substantial component data lost. 05295_ System corrupted: Component data lost. 05313_ System corrupted: Energy discharge (-50). 05330_ GSF,IIUY&2IDL10&|U,W4OV 05336_ Slammed into K-01 Serf. Map ----- +----------------------------------------------------+ | | | | | | | | | | | | | | | ?????????????????????????????????????????????????? | | ?????????????????????????????????????????????????? | | ?????????????????????????????????????????????????? | | ?????????????????????????????????????????????????? | | ?????????????????????????????????????????????????? | | ?????????????????????????????????????????????????? | | ?????????????????????????????????????????????????? | | ?????????????????????????????????????????????????? | | ????????#######??????????????????????????????????? | | #######?# #????????#######???????????????????? | | # [ ! ]## "T" #????????# #???????????????????? | | # ## ########## #???????????????????? | | # " "" ## """ + #??????????########## | | # "R"" ## """ ########## #??????????# ! | | # """" ?# """ #????????# #??????##### | | # ???# ######???## ##??????# # | | ##+#########+## ###### #???????# # | | #???????# # ! | | @ #???????# + ] | | ##+#########+## ######k #???????# # | | ## ######????# #???????# # | | ## #????????## ##?????## ########## | | ## """ #?######## ####### #???????? | | ! ## "R ### #???????? | | ## """ + " #???????? | | ## ### #???????? | | #####+####+####?# #### ####### #??????? | | # #????# #??## ##?????#######??????#" | | """ # #????# #???# #???????????????????# | | """"" # ###### #???# #???????????????????# | | """"" # #???# #???????????????????## | | """"" + #???# #???????????????????" | | """ # #???# #???????????????????" | | ### #####+###### #???????????????????"? | | """T""" #?# # ## #????????????????????? | | ##########?# + ## #????????????????????? | | ???????????### ! ## #????????????????????? | | ?????????????# ! ## #????????????????????? | | ?????????????# ## #????????????????????? | | ?????????????# #? #????????????????????? | | ?????????????# ! #? #????????????????????? | | ?????????????#= #? ????????????????????? | | ?????????????###########? ????????????????????? | +----------------------------------------------------+ Best States ------------- Heat Dissipation 45 Energy Generation 14 Energy Capacity 280 Matter Stores 300 Matter Capacity 500 Sight Range 16 Robot Scan Range 15 Terrain Scan Density 10 Armor Coverage 150 Resistance: EM 15 Evasion (%) 40 Targeting Accuracy 6 Recoil Reduction 2 Salvage Targeting 1 Offensive Hacking 20 Item Schematics ----------------- Hcp. Storage Unit | -9/Materials | Hacked Lrg. Storage Unit | -9/Materials | Hacked Plasma Cutter | -9/Materials | Scanalyzed Imp. Flight Unit | -9/Materials | Scanalyzed Mni. Grenade Launcher | -9/Materials | Scanalyzed Adv. Weight Redist. System | -9/Materials | Scanalyzed Transport Network Coupler | -9/Materials | Scanalyzed Robot Schematics ------------------ None Fabricated ------------ Nothing Repaired ---------- Arm. Wheel | 20% | -8/Materials Studied --------- None Alien Tech Used ----------------- None Achievements -------------- None Challenges ------------ None Game ------ Seed BladeHybridLance Manual? 0 Play Time 00:41:50 Cumulative 357.6 hours Start 2026.07.14 @ 00:25:07 End 2026.07.14 @ 01:06:49 Sessions 1 Manual Loads 0 Difficulty Rogue Special Mode None Game No. 182 Rogue 182 Adventurer 0 Explorer 0 Win Type - Total 7 Types 4/0/1/1/0/0/0/1/0/0 Lore% 70 Gallery% 72 Achievement% 63 Wizard Run 0 Options --------- Layout 1 ASCII 0 Keyboard 0 Movement Mouse Keybinds 0 Fullscreen 1 Font 18/SmallcapsGlow Map View 54x44 Zoom Use 0% Tactical HUD 1 Map Filters NONE Filters NONE Steam 0 RUN: c6f9712f-b557-4343-bb95-f210b4d06da3